{"text_format":"3","workbook":"xlsx","n_sheets":3,"sheets":["Kommunikationsplan","Zusammenfassung","Beschreibung"],"not_rendered":{"charts":2},"read":"whole","date_system":"1900"}

{"sheet":"Kommunikationsplan","index":0,"n_rows":384,"n_cols":20,"rows_kept":384,"merged":[[5,1,35,1],[36,1,36,9],[37,1,65,1],[66,1,66,9],[67,1,97,1],[98,1,98,9],[99,1,128,1],[129,1,129,9],[130,1,160,1],[161,1,161,9],[162,1,191,1],[192,1,192,9],[193,1,223,1],[224,1,224,9],[225,1,255,1],[256,1,256,9],[257,1,286,1],[287,1,287,9],[288,1,318,1],[319,1,319,9],[320,1,349,1],[350,1,350,9],[351,1,381,1],[382,1,382,9],[383,1,383,9]]}
[]
[null,"Redaktionsplan 2020"]
[]
[{"$nulls":4},"KW","Feiertag","Aufgabe / Beitrag / Thema","Kampagnen-, Themenzuordnung","Autor","Freigabe","News","Blog","Facebook","Xing","Google+","Twitter","Youtube","Div.","Print","Deadline"]
[{"$nulls":6},"Beschreibung","Beschreibung","Name","Name","Anzahl","Anzahl","Anzahl","Anzahl","Anzahl","Anzahl","Anzahl","Anzahl","Anzahl","Datum"]
[null,"Januar",1,"Mi",1,"Neujahr"]
[null,null,2,"Do"]
[null,null,3,"Fr"]
[null,null,4,"Sa"]
[null,null,5,"So"]
[null,null,6,"Mo",2,"Heilige 3 Könige"]
[null,null,7,"Di"]
[null,null,8,"Mi"]
[null,null,9,"Do"]
[null,null,10,"Fr"]
[null,null,11,"Sa"]
[null,null,12,"So"]
[null,null,13,"Mo",3]
[null,null,14,"Di"]
[null,null,15,"Mi"]
[null,null,16,"Do"]
[null,null,17,"Fr"]
[null,null,18,"Sa"]
[null,null,19,"So"]
[null,null,20,"Mo",4]
[null,null,21,"Di"]
[null,null,22,"Mi"]
[null,null,23,"Do"]
[null,null,24,"Fr"]
[null,null,25,"Sa"]
[null,null,26,"So"]
[null,null,27,"Mo",5]
[null,null,28,"Di"]
[null,null,29,"Mi"]
[null,null,30,"Do"]
[null,null,31,"Fr"]
[null,"Zwischensumme Januar 2020   ",{"$nulls":8},{"$f":"SUM(K6:K36)","v":0},{"$f":"SUM(L6:L36)","v":0},0,0,0,0,0,0,{"$f":"SUM(S6:S36)","v":0}]
[null,"Februar",1,"Sa"]
[null,null,2,"So"]
[null,null,3,"Mo",6]
[null,null,4,"Di"]
[null,null,5,"Mi"]
[null,null,6,"Do"]
[null,null,7,"Fr"]
[null,null,8,"Sa"]
[null,null,9,"So"]
[null,null,10,"Mo",7]
[null,null,11,"Di"]
[null,null,12,"Mi"]
[null,null,13,"Do"]
[null,null,14,"Fr",null,"Valentinstag"]
[null,null,15,"Sa"]
[null,null,16,"So"]
[null,null,17,"Mo",8]
[null,null,18,"Di"]
[null,null,19,"Mi"]
[null,null,20,"Do",null,"Altweiberfasching"]
[null,null,21,"Fr"]
[null,null,22,"Sa"]
[null,null,23,"So"]
[null,null,24,"Mo",9,"Rosenmontag"]
[null,null,25,"Di"]
[null,null,26,"Mi",null,"Aschermittwoch"]
[null,null,27,"Do"]
[null,null,28,"Fr"]
[null,null,29,"Sa"]
[null,"Zwischensumme Februar 2020   ",{"$nulls":8},{"$f":"SUM(K38:K66)","v":0},0,0,0,0,0,0,0,0]
[null,"März",1,"So"]
[null,null,2,"Mo",10]
[null,null,3,"Di"]
[null,null,4,"Mi"]
[null,null,5,"Do"]
[null,null,6,"Fr"]
[null,null,7,"Sa"]
[null,null,8,"So"]
[null,null,9,"Mo",11]
[null,null,10,"Di"]
[null,null,11,"Mi"]
[null,null,12,"Do"]
[null,null,13,"Fr"]
[null,null,14,"Sa"]
[null,null,15,"So"]
[null,null,16,"Mo",12]
[null,null,17,"Di"]
[null,null,18,"Mi"]
[null,null,19,"Do"]
[null,null,20,"Fr"]
[null,null,21,"Sa"]
[null,null,22,"So"]
[null,null,23,"Mo",13]
[null,null,24,"Di"]
[null,null,25,"Mi"]
[null,null,26,"Do"]
[null,null,27,"Fr"]
[null,null,28,"Sa"]
[null,null,29,"So"]
[null,null,30,"Mo",14]
[null,null,31,"Di"]
[null,"Zwischensumme März 2020   ",{"$nulls":8},{"$f":"SUM(K68:K98)","v":0},{"$f":"SUM(L68:L98)","v":0},0,0,0,0,0,0,0]
[null,"April",1,"Mi"]
[null,null,2,"Do"]
[null,null,3,"Fr"]
[null,null,4,"Sa"]
[null,null,5,"So",null,"Palmsonntag"]
[null,null,6,"Mo",15]
[null,null,7,"Di"]
[null,null,8,"Mi"]
[null,null,9,"Do"]
[null,null,10,"Fr",null,"Karfreitag"]
[null,null,11,"Sa"]
[null,null,12,"So",null,"Ostersonntag"]
[null,null,13,"Mo",16,"Ostermontag"]
[null,null,14,"Di"]
[null,null,15,"Mi"]
[null,null,16,"Do"]
[null,null,17,"Fr"]
[null,null,18,"Sa"]
[null,null,19,"So"]
[null,null,20,"Mo",17]
[null,null,21,"Di"]
[null,null,22,"Mi"]
[null,null,23,"Do"]
[null,null,24,"Fr"]
[null,null,25,"Sa"]
[null,null,26,"So"]
[null,null,27,"Mo",18]
[null,null,28,"Di"]
[null,null,29,"Mi"]
[null,null,30,"Do"]
[null,"Zwischensumme April 2020   ",{"$nulls":8},{"$f":"SUM(K100:K129)","v":0},{"$f":"SUM(L100:L129)","v":0},0,0,0,0,0,0,0]
[null,"Mai",1,"Fr",null,"Tag der Arbeit"]
[null,null,2,"Sa"]
[null,null,3,"So"]
[null,null,4,"Mo",19]
[null,null,5,"Di"]
[null,null,6,"Mi"]
[null,null,7,"Do"]
[null,null,8,"Fr"]
[null,null,9,"Sa"]
[null,null,10,"So",null,"Muttertag"]
[null,null,11,"Mo",20]
[null,null,12,"Di"]
[null,null,13,"Mi"]
[null,null,14,"Do"]
[null,null,15,"Fr"]
[null,null,16,"Sa"]
[null,null,17,"So"]
[null,null,18,"Mo",21]
[null,null,19,"Di"]
[null,null,20,"Mi"]
[null,null,21,"Do",null,"Vatertag"]
[null,null,22,"Fr"]
[null,null,23,"Sa"]
[null,null,24,"So"]
[null,null,25,"Mo",22]
[null,null,26,"Di"]
[null,null,27,"Mi"]
[null,null,28,"Do"]
[null,null,29,"Fr"]
[null,null,30,"Sa"]
[null,null,31,"So",null,"Pfingstsonntag"]
[null,"Zwischensumme Mai 2020   ",{"$nulls":8},{"$f":"SUM(K131:K161)","v":0},{"$f":"SUM(L131:L161)","v":0},0,0,0,0,0,0,0]
[null,"Juni",1,"Mo",23,"Pfingstmontag"]
[null,null,2,"Di"]
[null,null,3,"Mi"]
[null,null,4,"Do"]
[null,null,5,"Fr"]
[null,null,6,"Sa"]
[null,null,7,"So"]
[null,null,8,"Mo",24]
[null,null,9,"Di"]
[null,null,10,"Mi"]
[null,null,11,"Do",null,"Fronleichnam"]
[null,null,12,"Fr"]
[null,null,13,"Sa"]
[null,null,14,"So"]
[null,null,15,"Mo",25]
[null,null,16,"Di"]
[null,null,17,"Mi"]
[null,null,18,"Do"]
[null,null,19,"Fr"]
[null,null,20,"Sa"]
[null,null,21,"So"]
[null,null,22,"Mo",26]
[null,null,23,"Di"]
[null,null,24,"Mi"]
[null,null,25,"Do"]
[null,null,26,"Fr"]
[null,null,27,"Sa"]
[null,null,28,"So"]
[null,null,29,"Mo",27]
[null,null,30,"Di"]
[null,"Zwischensumme Juni 2020   ",{"$nulls":8},{"$f":"SUM(K163:K192)","v":0},{"$f":"SUM(L163:L192)","v":0},0,0,0,0,0,0,0]
[null,"Juli",1,"Mi"]
[null,null,2,"Do"]
[null,null,3,"Fr"]
[null,null,4,"Sa"]
[null,null,5,"So"]
[null,null,6,"Mo",28]
[null,null,7,"Di"]
[null,null,8,"Mi"]
[null,null,9,"Do"]
[null,null,10,"Fr"]
[null,null,11,"Sa"]
[null,null,12,"So"]
[null,null,13,"Mo",29]
[null,null,14,"Di"]
[null,null,15,"Mi"]
[null,null,16,"Do"]
[null,null,17,"Fr"]
[null,null,18,"Sa"]
[null,null,19,"So"]
[null,null,20,"Mo",30]
[null,null,21,"Di"]
[null,null,22,"Mi"]
[null,null,23,"Do"]
[null,null,24,"Fr"]
[null,null,25,"Sa"]
[null,null,26,"So"]
[null,null,27,"Mo",31]
[null,null,28,"Di"]
[null,null,29,"Mi"]
[null,null,30,"Do"]
[null,null,31,"Fr"]
[null,"Zwischensumme Juli 2020   ",{"$nulls":8},{"$f":"SUM(K194:K224)","v":0},{"$f":"SUM(L194:L224)","v":0},0,0,0,0,0,0,0]
[null,"August",1,"Sa"]
[null,null,2,"So"]
[null,null,3,"Mo",32]
[null,null,4,"Di"]
[null,null,5,"Mi"]
[null,null,6,"Do"]
[null,null,7,"Fr"]
[null,null,8,"Sa",null,"Friedensfest"]
[null,null,9,"So"]
[null,null,10,"Mo",33]
[null,null,11,"Di"]
[null,null,12,"Mi"]
[null,null,13,"Do"]
[null,null,14,"Fr"]
[null,null,15,"Sa",null,"Mariä Himmelfahrt"]
[null,null,16,"So"]
[null,null,17,"Mo",34]
[null,null,18,"Di"]
[null,null,19,"Mi"]
[null,null,20,"Do"]
[null,null,21,"Fr"]
[null,null,22,"Sa"]
[null,null,23,"So"]
[null,null,24,"Mo",35]
[null,null,25,"Di"]
[null,null,26,"Mi"]
[null,null,27,"Do"]
[null,null,28,"Fr"]
[null,null,29,"Sa"]
[null,null,30,"So"]
[null,null,31,"Mo",36]
[null,"Zwischensumme August 2020   ",{"$nulls":8},{"$f":"SUM(K226:K256)","v":0},{"$f":"SUM(L226:L256)","v":0},0,0,0,0,0,0,0]
[null,"September",1,"Di"]
[null,null,2,"Mi"]
[null,null,3,"Do"]
[null,null,4,"Fr"]
[null,null,5,"Sa"]
[null,null,6,"So"]
[null,null,7,"Mo",37]
[null,null,8,"Di"]
[null,null,9,"Mi"]
[null,null,10,"Do"]
[null,null,11,"Fr"]
[null,null,12,"Sa"]
[null,null,13,"So"]
[null,null,14,"Mo",38]
[null,null,15,"Di"]
[null,null,16,"Mi"]
[null,null,17,"Do"]
[null,null,18,"Fr"]
[null,null,19,"Sa"]
[null,null,20,"So"]
[null,null,21,"Mo",39]
[null,null,22,"Di"]
[null,null,23,"Mi"]
[null,null,24,"Do"]
[null,null,25,"Fr"]
[null,null,26,"Sa"]
[null,null,27,"So"]
[null,null,28,"Mo",40]
[null,null,29,"Di"]
[null,null,30,"Mi"]
[null,"Zwischensumme September 2020   ",{"$nulls":8},{"$f":"SUM(K258:K287)","v":0},{"$f":"SUM(L258:L287)","v":0},0,0,0,0,0,0,0]
[null,"Oktober",1,"Do"]
[null,null,2,"Fr"]
[null,null,3,"Sa",null,"Tag der Deutschen Einheit"]
[null,null,4,"So",null,"Erntedankfest"]
[null,null,5,"Mo",41]
[null,null,6,"Di"]
[null,null,7,"Mi"]
[null,null,8,"Do"]
[null,null,9,"Fr"]
[null,null,10,"Sa"]
[null,null,11,"So"]
[null,null,12,"Mo",42]
[null,null,13,"Di"]
[null,null,14,"Mi"]
[null,null,15,"Do"]
[null,null,16,"Fr"]
[null,null,17,"Sa"]
[null,null,18,"So"]
[null,null,19,"Mo",43]
[null,null,20,"Di"]
[null,null,21,"Mi"]
[null,null,22,"Do"]
[null,null,23,"Fr"]
[null,null,24,"Sa"]
[null,null,25,"So"]
[null,null,26,"Mo",44]
[null,null,27,"Di"]
[null,null,28,"Mi"]
[null,null,29,"Do"]
[null,null,30,"Fr"]
[null,null,31,"Sa",null,"Reformationstag"]
[null,"Zwischensumme Oktober 2020   ",{"$nulls":8},{"$f":"SUM(K289:K319)","v":0},{"$f":"SUM(L289:L319)","v":0},0,0,0,0,0,0,0]
[null,"November",1,"So",null,"Allerheiligen"]
[null,null,2,"Mo",45,"Allerseelen"]
[null,null,3,"Di"]
[null,null,4,"Mi"]
[null,null,5,"Do"]
[null,null,6,"Fr"]
[null,null,7,"Sa"]
[null,null,8,"So"]
[null,null,9,"Mo",46]
[null,null,10,"Di"]
[null,null,11,"Mi",null,"St. Martin"]
[null,null,12,"Do"]
[null,null,13,"Fr"]
[null,null,14,"Sa"]
[null,null,15,"So"]
[null,null,16,"Mo",47]
[null,null,17,"Di"]
[null,null,18,"Mi",null,"Buß- und Bettag"]
[null,null,19,"Do"]
[null,null,20,"Fr"]
[null,null,21,"Sa"]
[null,null,22,"So",null,"Totensonntag"]
[null,null,23,"Mo",48]
[null,null,24,"Di"]
[null,null,25,"Mi"]
[null,null,26,"Do"]
[null,null,27,"Fr"]
[null,null,28,"Sa"]
[null,null,29,"So",null,"1. Advent"]
[null,null,30,"Mo",49]
[null,"Zwischensumme November 2020   ",{"$nulls":8},{"$f":"SUM(K321:K350)","v":0},{"$f":"SUM(L321:L350)","v":0},0,0,0,0,0,0,0]
[null,"Dezember",1,"Di"]
[null,null,2,"Mi"]
[null,null,3,"Do"]
[null,null,4,"Fr"]
[null,null,5,"Sa"]
[null,null,6,"So",null,"2. Advent / Nikolaus"]
[null,null,7,"Mo",50]
[null,null,8,"Di"]
[null,null,9,"Mi"]
[null,null,10,"Do"]
[null,null,11,"Fr"]
[null,null,12,"Sa"]
[null,null,13,"So",null,"3. Advent"]
[null,null,14,"Mo",51]
[null,null,15,"Di"]
[null,null,16,"Mi"]
[null,null,17,"Do"]
[null,null,18,"Fr"]
[null,null,19,"Sa"]
[null,null,20,"So",null,"4. Advent"]
[null,null,21,"Mo",52]
[null,null,22,"Di"]
[null,null,23,"Mi"]
[null,null,24,"Do",null,"Heiligabend"]
[null,null,25,"Fr",null,"1. Weihnachtstag"]
[null,null,26,"Sa",null,"2. Weihnachtstag"]
[null,null,27,"So"]
[null,null,28,"Mo",53]
[null,null,29,"Di"]
[null,null,30,"Mi"]
[null,null,31,"Do",null,"Silvester"]
[null,"Zwischensumme Dezember 2020   ",{"$nulls":8},{"$f":"SUM(K352:K382)","v":0},{"$f":"SUM(L352:L382)","v":0},0,0,0,0,0,0,0]
[null,"Gesamtsumme 2020   ",{"$nulls":8},{"$f":"K37+K67+K99+K130+K162+K193+K225+K257+K288+K320+K351+K383","v":0},0,0,0,0,0,0,0,0]

{"sheet":"Zusammenfassung","index":1,"n_rows":16,"n_cols":17,"rows_kept":16,"merged":[[1,1,1,6]]}
[]
[null,"Auswertung"]
[]
[null,"Monatsverteilung",{"$nulls":13},"Jahresverteilung"]
[]
[null,null,"Jan","Feb","Mrz","Apr","Mai","Jun","Jul","Aug","Sept","Okt","Nov","Dez",null,null,2020]
[null,{"$f":"Kommunikationsplan!K4","v":"News"},{"$f":"Kommunikationsplan!K37","v":0},{"$f":"Kommunikationsplan!K67","v":0},{"$f":"Kommunikationsplan!K99","v":0},{"$f":"Kommunikationsplan!K130","v":0},{"$f":"Kommunikationsplan!K162","v":0},{"$f":"Kommunikationsplan!K193","v":0},{"$f":"Kommunikationsplan!K225","v":0},{"$f":"Kommunikationsplan!K257","v":0},{"$f":"Kommunikationsplan!K288","v":0},{"$f":"Kommunikationsplan!K320","v":0},{"$f":"Kommunikationsplan!K351","v":0},{"$f":"Kommunikationsplan!K383","v":0},null,{"$f":"B7","v":"News"},{"$f":"Kommunikationsplan!K384","v":0}]
[null,{"$f":"Kommunikationsplan!L4","v":"Blog"},{"$f":"Kommunikationsplan!L37","v":0},{"$f":"Kommunikationsplan!L67","v":0},{"$f":"Kommunikationsplan!L99","v":0},{"$f":"Kommunikationsplan!L130","v":0},{"$f":"Kommunikationsplan!L162","v":0},{"$f":"Kommunikationsplan!L193","v":0},{"$f":"Kommunikationsplan!L225","v":0},{"$f":"Kommunikationsplan!L257","v":0},{"$f":"Kommunikationsplan!L288","v":0},{"$f":"Kommunikationsplan!L320","v":0},{"$f":"Kommunikationsplan!L351","v":0},{"$f":"Kommunikationsplan!L383","v":0},null,"Blog",{"$f":"Kommunikationsplan!L384","v":0}]
[null,{"$f":"Kommunikationsplan!M4","v":"Facebook"},{"$f":"Kommunikationsplan!M37","v":0},{"$f":"Kommunikationsplan!M67","v":0},{"$f":"Kommunikationsplan!M99","v":0},{"$f":"Kommunikationsplan!M130","v":0},{"$f":"Kommunikationsplan!M162","v":0},{"$f":"Kommunikationsplan!M193","v":0},{"$f":"Kommunikationsplan!M225","v":0},{"$f":"Kommunikationsplan!M257","v":0},{"$f":"Kommunikationsplan!M288","v":0},{"$f":"Kommunikationsplan!M320","v":0},{"$f":"Kommunikationsplan!M351","v":0},{"$f":"Kommunikationsplan!M383","v":0},null,"Facebook",{"$f":"Kommunikationsplan!M384","v":0}]
[null,{"$f":"Kommunikationsplan!N4","v":"Xing"},{"$f":"Kommunikationsplan!N37","v":0},{"$f":"Kommunikationsplan!N67","v":0},{"$f":"Kommunikationsplan!N99","v":0},{"$f":"Kommunikationsplan!N130","v":0},{"$f":"Kommunikationsplan!N162","v":0},{"$f":"Kommunikationsplan!N193","v":0},{"$f":"Kommunikationsplan!N225","v":0},{"$f":"Kommunikationsplan!N257","v":0},{"$f":"Kommunikationsplan!N288","v":0},{"$f":"Kommunikationsplan!N320","v":0},{"$f":"Kommunikationsplan!N351","v":0},{"$f":"Kommunikationsplan!N383","v":0},null,"Xing",{"$f":"Kommunikationsplan!N384","v":0}]
[null,{"$f":"Kommunikationsplan!O4","v":"Google+"},{"$f":"Kommunikationsplan!O37","v":0},{"$f":"Kommunikationsplan!O67","v":0},{"$f":"Kommunikationsplan!O99","v":0},{"$f":"Kommunikationsplan!O130","v":0},{"$f":"Kommunikationsplan!O162","v":0},{"$f":"Kommunikationsplan!O193","v":0},{"$f":"Kommunikationsplan!O225","v":0},{"$f":"Kommunikationsplan!O257","v":0},{"$f":"Kommunikationsplan!O288","v":0},{"$f":"Kommunikationsplan!O320","v":0},{"$f":"Kommunikationsplan!O351","v":0},{"$f":"Kommunikationsplan!O383","v":0},null,"Google+",{"$f":"Kommunikationsplan!O384","v":0}]
[null,{"$f":"Kommunikationsplan!P4","v":"Twitter"},{"$f":"Kommunikationsplan!P37","v":0},{"$f":"Kommunikationsplan!P67","v":0},{"$f":"Kommunikationsplan!P99","v":0},{"$f":"Kommunikationsplan!P130","v":0},{"$f":"Kommunikationsplan!P162","v":0},{"$f":"Kommunikationsplan!P193","v":0},{"$f":"Kommunikationsplan!P225","v":0},{"$f":"Kommunikationsplan!P257","v":0},{"$f":"Kommunikationsplan!P288","v":0},{"$f":"Kommunikationsplan!P320","v":0},{"$f":"Kommunikationsplan!P351","v":0},{"$f":"Kommunikationsplan!P383","v":0},null,"Twitter",{"$f":"Kommunikationsplan!P384","v":0}]
[null,{"$f":"Kommunikationsplan!Q4","v":"Youtube"},{"$f":"Kommunikationsplan!Q37","v":0},{"$f":"Kommunikationsplan!Q67","v":0},{"$f":"Kommunikationsplan!Q99","v":0},{"$f":"Kommunikationsplan!Q130","v":0},{"$f":"Kommunikationsplan!Q162","v":0},{"$f":"Kommunikationsplan!Q193","v":0},{"$f":"Kommunikationsplan!Q225","v":0},{"$f":"Kommunikationsplan!Q257","v":0},{"$f":"Kommunikationsplan!Q288","v":0},{"$f":"Kommunikationsplan!Q320","v":0},{"$f":"Kommunikationsplan!Q351","v":0},{"$f":"Kommunikationsplan!Q383","v":0},null,"Youtube",{"$f":"Kommunikationsplan!Q384","v":0}]
[null,{"$f":"Kommunikationsplan!R4","v":"Div."},{"$f":"Kommunikationsplan!R37","v":0},{"$f":"Kommunikationsplan!R67","v":0},{"$f":"Kommunikationsplan!R99","v":0},{"$f":"Kommunikationsplan!R130","v":0},{"$f":"Kommunikationsplan!R162","v":0},{"$f":"Kommunikationsplan!R193","v":0},{"$f":"Kommunikationsplan!R225","v":0},{"$f":"Kommunikationsplan!R257","v":0},{"$f":"Kommunikationsplan!R288","v":0},{"$f":"Kommunikationsplan!R320","v":0},{"$f":"Kommunikationsplan!R351","v":0},{"$f":"Kommunikationsplan!R383","v":0},null,"Div.",{"$f":"Kommunikationsplan!R384","v":0}]
[null,{"$f":"Kommunikationsplan!S4","v":"Print"},{"$f":"Kommunikationsplan!S37","v":0},{"$f":"Kommunikationsplan!S67","v":0},{"$f":"Kommunikationsplan!S99","v":0},{"$f":"Kommunikationsplan!S130","v":0},{"$f":"Kommunikationsplan!S162","v":0},{"$f":"Kommunikationsplan!S193","v":0},{"$f":"Kommunikationsplan!S225","v":0},{"$f":"Kommunikationsplan!S257","v":0},{"$f":"Kommunikationsplan!S288","v":0},{"$f":"Kommunikationsplan!S320","v":0},{"$f":"Kommunikationsplan!S351","v":0},{"$f":"Kommunikationsplan!S383","v":0},null,"Print",{"$f":"Kommunikationsplan!S384","v":0}]
[null,null,{"$f":"SUM(C7:C15)","v":0},{"$f":"SUM(D7:D15)","v":0},{"$f":"SUM(E7:E15)","v":0},{"$f":"SUM(F7:F15)","v":0},{"$f":"SUM(G7:G15)","v":0},{"$f":"SUM(H7:H15)","v":0},0,0,0,0,0,{"$f":"SUM(N7:N15)","v":0},null,null,{"$f":"SUM(Q7:Q15)","v":0}]

{"sheet":"Beschreibung","index":2,"n_rows":2,"n_cols":1,"rows_kept":2}
["Nähere Informationen finden Sie hier:"]
["http://excel-vorlagen.net/redaktionsplan-2020/"]